fUST/lending_fUST_20251128
["ID","MTS","AMOUNT","RATE_DAILY","PERIOD"]
[395017208,1764337833018,-600.0,0.00017187,2]
[395017210,1764337833027,-750.0,0.00017219,2]
[395017212,1764337833036,-500.0,0.00017313,2]
[395017213,1764337833045,-600.0,0.00017577,2]
[395017215,1764337833054,-1000.0,0.000178,2]
[395017217,1764337833063,-600.0,0.00017802,2]
[395017219,1764337833072,-600.0,0.00017922,2]
[395017221,1764337833081,-285.0,0.00017942,2]
[395017223,1764337833090,-151.0,0.00018098,2]
[395017225,1764337833099,-151.0,0.00018098,2]
[395017227,1764337833108,-224.34885597,0.00018098,2]
[395017229,1764337833117,-500.0,0.00018117,2]
[395017231,1764337833126,-500.0,0.00018292,2]
[395017233,1764337833135,-800.0,0.00018356,7]
[395017235,1764337833144,-500.0,0.00018356,2]
[395017237,1764337833157,-600.0,0.00018519,2]
[395017239,1764337833166,-500.0,0.00018677,2]
[395017241,1764337833175,-600.0,0.00018764,2]
[395017243,1764337833185,-289.95595505,0.00018794,2]
[395017245,1764337833194,-161.343213,0.00018839,7]
[395017248,1764337833204,-14437.0,0.00019,2]
[395017249,1764337833213,-1500.0,0.00019,2]
[395017251,1764337833222,-1500.0,0.00019,2]
[395017254,1764337833231,-1500.0,0.00019,2]
[395017255,1764337833240,-1500.0,0.00019,2]
[395017257,1764337833249,-1500.0,0.00019,2]
[395017259,1764337833259,-1500.0,0.00019,2]
[395017261,1764337833268,-1500.0,0.00019,2]
[395017263,1764337833277,-1500.0,0.00019,2]
[395017265,1764337833287,-1500.0,0.00019,2]
[395017267,1764337833296,-1500.0,0.00019,2]
[395017269,1764337833305,-1042.64,0.00019,2]
[395017271,1764337833314,-1000.0,0.00019,2]
[395017273,1764337833323,-161.343213,0.00019,7]
[395017275,1764337833332,-157.567692,0.00019,7]
[395017277,1764337833341,-505.03716892,0.00019077,2]
[395017279,1764337833352,-600.0,0.00019078,2]
[395017281,1764337833361,-646261.51571578,0.00019078,2]
[395017427,1764337838400,-505.03716892,0.00019077,2]
[395017428,1764337838410,-505.03716892,0.00019077,2]
[395017429,1764337838420,-505.03716892,0.00019077,2]
[395017430,1764337838430,-505.03716892,0.00019077,2]
[395017431,1764337838440,-505.03716892,0.00019077,2]
[395017432,1764337838450,-505.03716892,0.00019077,2]
[395017433,1764337838461,-380.02305075,0.00019077,2]
[395017434,1764337838474,-125.01411817,0.00019077,2]
[395017435,1764337838484,-505.03716892,0.00019077,2]
[395017436,1764337838493,-505.03716892,0.00019077,2]
[395017437,1764337838504,-27.99426649,0.00019077,2]
[395017438,1764337838516,-477.04290243,0.00019077,2]
[395017439,1764337838526,-166.05052905,0.00019077,2]
[395017440,1764337838538,-338.98663987,0.00019077,2]
[395017441,1764337838548,-312.55767683,0.00019077,2]
[395017442,1764337838561,-192.47949209,0.00019077,2]
[395017443,1764337838571,-505.03716892,0.00019077,2]
[395017444,1764337838581,-505.03716892,0.00019077,2]
[395017445,1764337838590,-505.03716892,0.00019077,2]
[395017446,1764337838600,-505.03716892,0.00019077,2]
[395017447,1764337838611,-207.55718403,0.00019077,2]
[395017448,1764337838623,-282.83175995,0.00019077,2]
[395017449,1764337838642,-14.64822494,0.00019077,2]
[395017450,1764337838651,-505.03716892,0.00019077,2]
[395017451,1764337838662,-374.9266379,0.00019077,2]
[395017457,1764337843195,-345.11739145,0.00013699,2]
[395017468,1764337844149,-654.88260855,0.00013699,2]
[395017469,1764337844159,-308.75257699,0.00013699,2]
[395017470,1764337845051,-511.43118228,9.023e-05,2]
[395017471,1764337845061,-691.24742301,0.00013699,2]
[395017472,1764337845071,-191.2978,0.00013699,2]
[395017473,1764337845080,-182.59726539,0.00018886,2]
[395017474,1764337845089,-130.11053102,0.00019077,2]
[395017475,1764337845099,-13365.4158983,0.00019078,2]
[395017478,1764337846750,-900.21523819,8.642e-05,2]
[395017479,1764337846759,-900.21523819,9.828e-05,2]
[395017480,1764337846767,-511.43118228,0.00014062,2]
[395017481,1764337846777,-347692.36900692,0.00019078,2]
[395017482,1764337846789,-5312.07675462,0.00019078,2]
[395017483,1764337846798,-500.358,0.00019078,2]
[395017484,1764337846807,-7447.72236075,0.00019078,2]
[395017485,1764337846816,-511.43118228,0.00019102,2]
[395017486,1764337846825,-500.0,0.00019109,2]
[395017487,1764337846835,-201.6052561,0.00019126,2]
[395017488,1764337846843,-500.0,0.00019167,2]
[395017489,1764337846853,-169.54076,0.00019178,2]
[395017490,1764337846864,-500.0,0.00019178,2]
[395017491,1764337846873,-500.0,0.00019178,2]
[395017492,1764337846882,-500.0,0.00019178,2]
[395017493,1764337846892,-500.0,0.00019178,2]
[395017495,1764337846901,-500.0,0.00019178,2]
[395017496,1764337846911,-500.0,0.00019178,2]
[395017498,1764337846920,-500.0,0.00019178,2]
[395017500,1764337846929,-500.0,0.00019178,2]
[395017502,1764337846938,-615.2427991,0.00019178,2]
[395017503,1764337846948,-500.0,0.00019178,2]
[395017504,1764337846957,-500.0,0.00019178,2]
[395017505,1764337846966,-500.0,0.00019178,2]
[395017506,1764337846975,-500.0,0.00019178,2]
[395017507,1764337846984,-500.0,0.00019178,2]
[395017508,1764337846994,-500.0,0.00019178,2]
[395017509,1764337847003,-500.0,0.00019178,2]
[395017510,1764337847013,-457.53964558,0.00019178,2]
[395017511,1764337847024,-500.0,0.00019178,2]
[395017512,1764337847033,-500.0,0.00019178,2]
[395017513,1764337847042,-500.0,0.00019178,2]
[395017514,1764337847052,-1356.56,0.00019178,2]
[395017515,1764337847062,-500.0,0.00019178,2]
[395017516,1764337847071,-500.0,0.00019178,2]
[395017517,1764337847081,-500.0,0.00019178,2]
[395017518,1764337847090,-1804.92,0.00019178,2]
[395017519,1764337847100,-500.0,0.00019178,2]
[395017520,1764337847109,-700.35,0.00019178,2]
[395017521,1764337847118,-500.0,0.00019178,2]
[395017522,1764337847128,-150.0,0.00019178,2]
[395017523,1764337847137,-300.0,0.00019178,2]
[395017524,1764337847147,-450.0,0.00019178,2]
[395017525,1764337847157,-600.0,0.00019178,2]
[395017526,1764337847166,-672.23356041,0.00019178,2]
[395017527,1764337847175,-500.0,0.00019178,2]
[395017528,1764337847185,-524.47240334,0.00019178,2]
[395017529,1764337847194,-637.84,0.00019178,2]
[395017530,1764337847203,-500.0,0.00019178,2]
[395017531,1764337847212,-500.0,0.00019178,2]
[395017532,1764337847221,-500.0,0.00019178,2]
[395017533,1764337847231,-500.0,0.00019178,2]
[395017534,1764337847240,-500.0,0.00019178,2]
[395017535,1764337847251,-500.0,0.00019178,2]
[395017536,1764337847260,-500.0,0.00019178,2]
[395017537,1764337847269,-500.0,0.00019178,2]
[395017538,1764337847279,-500.0,0.00019178,2]
[395017539,1764337847288,-500.0,0.00019178,2]
[395017540,1764337847297,-1007.52,0.00019178,2]
[395017541,1764337847306,-500.0,0.00019178,2]
[395017542,1764337847315,-500.0,0.00019178,2]
[395017543,1764337847325,-500.0,0.00019178,2]
[395017544,1764337847335,-500.0,0.00019178,2]
[395017545,1764337847344,-514.18,0.00019178,2]
[395017546,1764337847354,-500.0,0.00019178,2]
[395017547,1764337847364,-500.0,0.00019178,2]
[395017548,1764337847375,-1249.22,0.00019178,2]
[395017549,1764337847385,-790.65,0.00019178,2]
[395017550,1764337847395,-500.0,0.00019178,2]
[395017551,1764337847405,-500.0,0.00019178,2]
[395017552,1764337847414,-500.0,0.00019178,2]
[395017553,1764337847424,-885.96,0.00019178,2]
[395017554,1764337847434,-500.0,0.00019178,2]
[395017555,1764337847443,-664.78,0.00019178,2]
[395017556,1764337847453,-500.0,0.00019178,2]
[395017557,1764337847462,-500.0,0.00019178,2]
[395017558,1764337847471,-1303.65,0.00019178,2]
[395017559,1764337847480,-1187.95,0.00019178,2]
[395017560,1764337847490,-500.0,0.00019178,2]
[395017561,1764337847499,-500.0,0.00019178,2]
[395017562,1764337847509,-500.0,0.00019178,2]
[395017563,1764337847518,-500.0,0.00019178,2]
[395017564,1764337847527,-463.95130972,0.00019178,2]
[395017565,1764337847537,-500.0,0.00019178,2]
[395017566,1764337847547,-500.0,0.00019178,2]
[395017567,1764337847556,-500.0,0.00019178,2]
[395017568,1764337847565,-851.27,0.00019178,2]
[395017569,1764337847574,-500.0,0.00019178,2]
[395017570,1764337847583,-500.0,0.00019178,2]
[395017571,1764337847592,-500.0,0.00019178,2]
[395017572,1764337847602,-758.03,0.00019178,2]
[395017573,1764337847611,-611.15,0.00019178,2]
[395017574,1764337847620,-500.0,0.00019178,2]
[395017575,1764337847630,-500.0,0.00019178,2]
[395017576,1764337847640,-500.0,0.00019178,2]
[395017577,1764337847650,-1225.46,0.00019178,2]
[395017578,1764337847659,-500.0,0.00019178,2]
[395017579,1764337847669,-500.0,0.00019178,2]
[395017580,1764337847678,-795.88,0.00019178,2]
[395017581,1764337847687,-500.0,0.00019178,2]
[395017582,1764337847697,-537.25,0.00019178,2]
[395017583,1764337847706,-500.0,0.00019178,2]
[395017584,1764337847715,-500.0,0.00019178,2]
[395017585,1764337847725,-500.0,0.00019178,2]
[395017586,1764337847735,-422.78533992,0.00019178,2]
[395017587,1764337847745,-500.0,0.00019178,2]
[395017588,1764337847754,-500.0,0.00019178,2]
[395017589,1764337847763,-500.0,0.00019178,2]
[395017590,1764337847774,-500.0,0.00019178,2]
[395017591,1764337847786,-500.0,0.00019178,2]
[395017592,1764337847795,-236.11370686,0.00019178,2]
[395017593,1764337847804,-500.0,0.00019178,2]
[395017594,1764337847814,-500.0,0.00019178,2]
[395017595,1764337847823,-500.0,0.00019178,2]
[395017596,1764337847833,-616.34198893,0.00019178,2]
[395017597,1764337847842,-500.0,0.00019178,2]
[395017598,1764337847852,-500.0,0.00019178,2]
[395017599,1764337847866,-500.0,0.00019178,2]
[395017600,1764337847876,-500.0,0.00019178,2]
[395017601,1764337847886,-500.0,0.00019178,2]
[395017602,1764337847895,-500.0,0.00019178,2]
[395017603,1764337847905,-500.0,0.00019178,2]
[395017604,1764337847914,-500.0,0.00019178,2]
[395017605,1764337847924,-2187.81,0.00019178,2]
[395017606,1764337847933,-500.0,0.00019178,2]
[395017607,1764337847943,-1138.53,0.00019178,2]
[395017608,1764337847952,-500.0,0.00019178,2]
[395017609,1764337847962,-662.84,0.00019178,2]
[395017610,1764337847971,-500.0,0.00019178,2]
[395017611,1764337847980,-500.0,0.00019178,2]
[395017612,1764337847990,-500.0,0.00019178,2]
[395017613,1764337847999,-500.0,0.00019178,2]
[395017614,1764337848008,-546.05693792,0.00019178,2]
[395017615,1764337848018,-503.03802596,0.00019178,2]
[395017616,1764337848027,-500.0,0.00019178,2]
[395017617,1764337848036,-500.0,0.00019178,2]
[395017618,1764337848046,-1325.39,0.00019178,2]
[395017619,1764337848056,-500.0,0.00019178,2]
[395017620,1764337848068,-500.0,0.00019178,2]
[395017621,1764337848077,-500.0,0.00019178,2]
[395017622,1764337848087,-516.11126996,0.00019178,2]
[395017623,1764337848098,-500.0,0.00019178,2]
[395017624,1764337848107,-500.0,0.00019178,2]
[395017625,1764337848117,-990.36,0.00019178,2]
[395017626,1764337848126,-500.0,0.00019178,2]
[395017627,1764337848136,-500.0,0.00019178,2]
[395017628,1764337848145,-500.0,0.00019178,2]
[395017629,1764337848154,-500.0,0.00019178,2]
[395017630,1764337848163,-1369.0,0.00019178,2]
[395017631,1764337848173,-500.0,0.00019178,2]
[395017632,1764337848182,-500.0,0.00019178,2]
[395017633,1764337848192,-500.0,0.00019178,2]
[395017634,1764337848202,-500.0,0.00019178,2]
[395017635,1764337848212,-500.0,0.00019178,2]
[395017636,1764337848222,-500.0,0.00019178,2]
[395017637,1764337848231,-500.0,0.00019178,2]
[395017638,1764337848241,-500.0,0.00019178,2]
[395017639,1764337848251,-500.0,0.00019178,2]
[395017640,1764337848260,-500.0,0.00019178,2]
[395017641,1764337848271,-856.67,0.00019178,2]
[395017642,1764337848281,-500.0,0.00019178,2]
[395017643,1764337848291,-927.78,0.00019178,2]
[395017644,1764337848301,-426.53509886,0.00019178,2]
[395017645,1764337848311,-2080.71,0.00019178,2]
[395017646,1764337848321,-505.93697389,0.00019178,2]
[395017647,1764337848331,-500.0,0.00019178,2]
[395017648,1764337848340,-500.0,0.00019178,2]
[395017649,1764337848350,-529.39397215,0.00019178,2]
[395017650,1764337848359,-696.7,0.00019178,2]
[395017651,1764337848373,-500.0,0.00019178,2]
[395017652,1764337848383,-500.0,0.00019178,2]
[395017653,1764337848393,-1595.14,0.00019178,2]
[395017654,1764337848403,-500.0,0.00019178,2]
[395017655,1764337848413,-500.0,0.00019178,2]
[395017656,1764337848422,-500.0,0.00019178,2]
[395017657,1764337848432,-500.0,0.00019178,2]
[395017658,1764337848441,-300.50025703,0.00019178,2]
[395017659,1764337848451,-500.0,0.00019178,2]
[395017660,1764337848460,-500.0,0.00019178,2]
[395017661,1764337848470,-400.73669185,0.00019178,2]
[395017662,1764337848480,-500.0,0.00019178,2]
[395017663,1764337848489,-500.0,0.00019178,2]
[395017664,1764337848499,-595.57,0.00019178,2]
[395017665,1764337848509,-500.0,0.00019178,2]
[395017666,1764337848519,-500.0,0.00019178,2]
[395017667,1764337848528,-500.0,0.00019178,2]
[395017668,1764337848537,-500.0,0.00019178,2]
[395017669,1764337848546,-500.0,0.00019178,2]
[395017670,1764337848555,-500.0,0.00019178,2]
[395017671,1764337848564,-500.0,0.00019178,2]
[395017672,1764337848573,-1150.74,0.00019178,2]
[395017673,1764337848583,-500.0,0.00019178,2]
[395017674,1764337848592,-500.0,0.00019178,2]
[395017675,1764337848601,-500.0,0.00019178,2]
[395017676,1764337848611,-351.53534815,0.00019178,2]
[395017677,1764337848622,-500.0,0.00019178,2]
[395017678,1764337848631,-500.0,0.00019178,2]
[395017679,1764337848640,-541.2,0.00019178,2]
[395017680,1764337848649,-615.32823369,0.00019178,2]
[395017681,1764337848658,-500.0,0.00019178,2]
[395017682,1764337848667,-500.0,0.00019178,2]
[395017683,1764337848677,-702.76,0.00019178,2]
[395017684,1764337848686,-500.0,0.00019178,2]
[395017685,1764337848695,-500.0,0.00019178,2]
[395017686,1764337848704,-500.0,0.00019178,2]
[395017687,1764337848713,-500.0,0.00019178,2]
[395017688,1764337848722,-501.42,0.00019178,2]
[395017689,1764337848731,-507.96,0.00019178,2]
[395017690,1764337848740,-500.0,0.00019178,2]
[395017691,1764337848749,-500.0,0.00019178,2]
[395017692,1764337848758,-500.0,0.00019178,2]
[395017693,1764337848767,-500.0,0.00019178,2]
[395017694,1764337848777,-500.0,0.00019178,2]
[395017695,1764337848789,-500.0,0.00019178,2]
[395017696,1764337848798,-1605.13,0.00019178,2]
[395017697,1764337848807,-500.0,0.00019178,2]
[395017698,1764337848817,-500.0,0.00019178,2]
[395017699,1764337848827,-1494.73,0.00019178,2]
[395017700,1764337848836,-500.0,0.00019178,2]
[395017701,1764337848846,-522.14982831,0.00019178,2]
[395017702,1764337848855,-500.0,0.00019178,2]
[395017703,1764337848866,-500.0,0.00019178,2]
[395017704,1764337848875,-500.0,0.00019178,2]
[395017705,1764337848885,-500.0,0.00019178,2]
[395017706,1764337848895,-500.0,0.00019178,2]
[395017707,1764337848903,-610.83,0.00019178,2]
[395017708,1764337848913,-500.0,0.00019178,2]
[395017709,1764337848923,-500.0,0.00019178,2]
[395017710,1764337848931,-500.0,0.00019178,2]
[395017711,1764337848941,-500.0,0.00019178,2]
[395017712,1764337848950,-997.64,0.00019178,2]
[395017713,1764337848959,-500.0,0.00019178,2]
[395017714,1764337848969,-500.0,0.00019178,2]
[395017715,1764337848978,-847.5,0.00019178,2]
[395017716,1764337848987,-500.0,0.00019178,2]
[395017717,1764337848996,-677.32,0.00019178,2]
[395017718,1764337849005,-500.0,0.00019178,2]
[395017719,1764337849015,-500.0,0.00019178,2]
[395017720,1764337849025,-1110.39,0.00019178,2]
[395017721,1764337849034,-500.0,0.00019178,2]
[395017722,1764337849043,-446.05235008,0.00019178,2]
[395017723,1764337849052,-500.0,0.00019178,2]
[395017724,1764337849061,-3232.59,0.00019178,2]
[395017725,1764337849070,-727.65,0.00019178,2]
[395017726,1764337849079,-500.0,0.00019178,2]
[395017727,1764337849088,-1978.69,0.00019178,2]
[395017728,1764337849097,-726.87,0.00019178,2]
[395017729,1764337849106,-500.0,0.00019178,2]
[395017730,1764337849117,-500.0,0.00019178,2]
[395017731,1764337849126,-500.0,0.00019178,2]
[395017732,1764337849135,-500.0,0.00019178,2]
[395017733,1764337849144,-1160.8,0.00019178,2]
[395017734,1764337849153,-500.0,0.00019178,2]
[395017735,1764337849162,-500.0,0.00019178,2]
[395017736,1764337849172,-500.0,0.00019178,2]
[395017737,1764337849181,-585.19,0.00019178,2]
[395017738,1764337849191,-1525.59,0.00019178,2]
[395017739,1764337849202,-500.0,0.00019178,2]
[395017740,1764337849214,-815.12,0.00019178,2]
[395017741,1764337849227,-500.0,0.00019178,2]
[395017742,1764337849239,-500.0,0.00019178,2]
[395017743,1764337849251,-500.0,0.00019178,2]
[395017744,1764337849261,-500.0,0.00019178,2]
[395017745,1764337849272,-1062.99,0.00019178,2]
[395017746,1764337849283,-500.0,0.00019178,2]
[395017747,1764337849295,-500.0,0.00019178,2]
[395017748,1764337849306,-500.0,0.00019178,2]
[395017749,1764337849318,-1885.19,0.00019178,2]
[395017750,1764337849330,-550.12091119,0.00019178,2]
[395017751,1764337849342,-624.09,0.00019178,2]
[395017752,1764337849355,-500.0,0.00019178,2]
[395017753,1764337849368,-500.0,0.00019178,2]
[395017754,1764337849381,-1431.27,0.00019178,2]
[395017755,1764337849393,-500.0,0.00019178,2]
[395017756,1764337849407,-668.59,0.00019178,2]
[395017757,1764337849419,-500.0,0.00019178,2]
[395017758,1764337849432,-500.0,0.00019178,2]
[395017759,1764337849443,-500.0,0.00019178,2]
[395017760,1764337849457,-161.343213,0.00019178,2]
[395017761,1764337849469,-500.0,0.00019178,2]
[395017762,1764337849480,-1632.21,0.00019178,2]
[395017763,1764337849491,-500.0,0.00019178,2]
[395017764,1764337849505,-1033.85,0.00019178,2]
[395017765,1764337849517,-790.15,0.00019178,2]
[395017766,1764337849528,-500.0,0.00019178,2]
[395017767,1764337849540,-500.0,0.00019178,2]
[395017768,1764337849551,-1251.68,0.00019178,2]
[395017769,1764337849561,-500.0,0.00019178,2]
[395017770,1764337849574,-500.0,0.00019178,2]
[395017771,1764337849586,-500.0,0.00019178,2]
[395017772,1764337849596,-500.0,0.00019178,2]
[395017773,1764337849608,-500.0,0.00019178,2]
[395017774,1764337849619,-500.0,0.00019178,2]
[395017775,1764337849630,-500.0,0.00019178,2]
[395017776,1764337849642,-500.0,0.00019178,2]
[395017777,1764337849653,-500.0,0.00019178,2]
[395017778,1764337849665,-713.73,0.00019178,2]
[395017779,1764337849677,-500.0,0.00019178,2]
[395017780,1764337849689,-661.99,0.00019178,2]
[395017781,1764337849700,-500.0,0.00019178,2]
[395017782,1764337849713,-500.0,0.00019178,2]
[395017783,1764337849723,-500.0,0.00019178,2]
[395017784,1764337849733,-500.0,0.00019178,2]
[395017785,1764337849743,-500.0,0.00019178,2]
[395017786,1764337849752,-500.0,0.00019178,2]
[395017787,1764337849763,-856.44,0.00019178,2]
[395017788,1764337849774,-500.0,0.00019178,2]
[395017789,1764337849790,-500.0,0.00019178,2]
[395017790,1764337849802,-1227.78,0.00019178,2]
[395017791,1764337849814,-500.0,0.00019178,2]
[395017792,1764337849824,-500.0,0.00019178,2]
[395017793,1764337849836,-500.0,0.00019178,2]
[395017794,1764337849847,-800.64,0.00019178,2]
[395017795,1764337849858,-1030.53,0.00019178,2]
[395017796,1764337849870,-500.0,0.00019178,2]
[395017797,1764337849881,-500.0,0.00019178,2]
[395017798,1764337849892,-2402.71,0.00019178,2]
[395017799,1764337849902,-500.0,0.00019178,2]
[395017800,1764337849912,-500.0,0.00019178,2]
[395017801,1764337849922,-1226.79,0.00019178,2]
[395017802,1764337849933,-500.0,0.00019178,2]
[395017803,1764337849943,-851.39,0.00019178,2]
[395017804,1764337849954,-500.0,0.00019178,2]
[395017805,1764337849965,-602.43,0.00019178,2]
[395017806,1764337849975,-500.0,0.00019178,2]
[395017807,1764337849985,-1211.47,0.00019178,2]
[395017808,1764337849996,-514.48,0.00019178,2]
[395017809,1764337850006,-1426.72,0.00019178,2]
[395017810,1764337850018,-2855.92,0.00019178,2]
[395017811,1764337850028,-500.0,0.00019178,2]
[395017812,1764337850039,-500.0,0.00019178,2]
[395017813,1764337850050,-500.0,0.00019178,2]
[395017814,1764337850061,-500.0,0.00019178,2]
[395017815,1764337850071,-500.0,0.00019178,2]
[395017816,1764337850082,-500.0,0.00019178,2]
[395017817,1764337850099,-500.0,0.00019178,2]
[395017818,1764337850109,-647.58,0.00019178,2]
[395017819,1764337850120,-500.0,0.00019178,2]
[395017820,1764337850132,-500.0,0.00019178,2]
[395017821,1764337850144,-500.0,0.00019178,2]
[395017822,1764337850155,-500.0,0.00019178,2]
[395017823,1764337850166,-500.0,0.00019178,2]
[395017824,1764337850178,-621.51535604,0.00019178,2]
[395017825,1764337850188,-1339.84,0.00019178,2]
[395017826,1764337850199,-500.0,0.00019178,2]
[395017827,1764337850211,-500.0,0.00019178,2]
[395017828,1764337850222,-1352.61,0.00019178,2]
[395017829,1764337850232,-157.567692,0.00019178,2]
[395017830,1764337850243,-3747.63,0.00019178,2]
[395017831,1764337850254,-500.0,0.00019178,2]
[395017832,1764337850264,-500.0,0.00019178,2]
[395017833,1764337850275,-500.0,0.00019178,2]
[395017834,1764337850286,-850.5,0.00019178,2]
[395017835,1764337850296,-706.54,0.00019178,2]
[395017836,1764337850307,-966.82,0.00019178,2]
[395017837,1764337850318,-500.0,0.00019178,2]
[395017838,1764337850328,-500.0,0.00019178,2]
[395017839,1764337850339,-500.0,0.00019178,2]
[395017840,1764337850350,-1417.51,0.00019178,2]
[395017841,1764337850361,-500.0,0.00019178,2]
[395017842,1764337850372,-500.0,0.00019178,2]
[395017843,1764337850383,-500.0,0.00019178,2]
[395017844,1764337850394,-500.0,0.00019178,2]
[395017845,1764337850404,-371.76192671,0.00019178,2]
[395017846,1764337850415,-500.0,0.00019178,2]
[395017847,1764337850426,-500.0,0.00019178,2]
[395017848,1764337850437,-1574.77,0.00019178,2]
[395017849,1764337850448,-500.0,0.00019178,2]
[395017850,1764337850458,-890.04,0.00019178,2]
[395017851,1764337850469,-510.236485,0.00019178,2]
[395017852,1764337850481,-500.0,0.00019178,2]
[395017853,1764337850494,-500.0,0.00019178,2]
[395017854,1764337850505,-839.28,0.00019178,2]
[395017855,1764337850520,-518.09770004,0.00019178,2]
[395017856,1764337850530,-839.19,0.00019178,2]
[395017857,1764337850540,-500.0,0.00019178,2]
[395017858,1764337850551,-2171.33,0.00019178,2]
[395017859,1764337850562,-500.0,0.00019178,2]
[395017860,1764337850572,-500.0,0.00019178,2]
[395017861,1764337850583,-545.25,0.00019178,2]
[395017862,1764337850593,-1299.9,0.00019178,2]
[395017863,1764337850604,-869.83,0.00019178,2]
[395017864,1764337850616,-500.0,0.00019178,2]
[395017865,1764337850627,-500.0,0.00019178,2]
[395017866,1764337850637,-3806.42,0.00019178,2]
[395017867,1764337850648,-500.0,0.00019178,2]
[395017868,1764337850658,-500.0,0.00019178,2]
[395017869,1764337850668,-500.0,0.00019178,2]
[395017870,1764337850679,-500.0,0.00019178,2]
[395017871,1764337850690,-500.0,0.00019178,2]
[395017872,1764337850700,-754.87,0.00019178,2]
[395017873,1764337850711,-500.0,0.00019178,2]
[395017874,1764337850721,-405.00576262,0.00019178,2]
[395017875,1764337850732,-515.40911706,0.00019178,2]
[395017876,1764337850743,-500.0,0.00019178,2]
[395017877,1764337850754,-526.5,0.00019178,2]
[395017878,1764337850764,-500.0,0.00019178,2]
[395017879,1764337850776,-500.0,0.00019178,2]
[395017880,1764337850789,-500.0,0.00019178,2]
[395017881,1764337850800,-500.0,0.00019178,2]
[395017882,1764337850810,-500.0,0.00019178,2]
[395017883,1764337850821,-1079.63,0.00019178,2]
[395017884,1764337850833,-500.0,0.00019178,2]
[395017885,1764337850843,-500.0,0.00019178,2]
[395017886,1764337850854,-4661.66,0.00019178,2]
[395017887,1764337850865,-500.0,0.00019178,2]
[395017888,1764337850876,-500.0,0.00019178,2]
[395017889,1764337850886,-1069.47,0.00019178,2]
[395017890,1764337850897,-500.0,0.00019178,2]
[395017891,1764337850907,-1114.95,0.00019178,2]
[395017892,1764337850917,-571.85,0.00019178,2]
[395017893,1764337850927,-1019.13,0.00019178,2]
[395017894,1764337850939,-500.0,0.00019178,2]
[395017895,1764337850950,-508.53,0.00019178,2]
[395017896,1764337850960,-500.0,0.00019178,2]
[395017897,1764337850970,-500.0,0.00019178,2]
[395017898,1764337850980,-535.73,0.00019178,2]
[395017899,1764337850990,-500.0,0.00019178,2]
[395017900,1764337851000,-500.0,0.00019178,2]
[395017901,1764337851011,-500.0,0.00019178,2]
[395017902,1764337851021,-508.26,0.00019178,2]
[395017903,1764337851031,-500.0,0.00019178,2]
[395017904,1764337851041,-500.0,0.00019178,2]
[395017905,1764337851051,-500.0,0.00019178,2]
[395017906,1764337851061,-500.0,0.00019178,2]
[395017907,1764337851072,-500.0,0.00019178,2]
[395017908,1764337851082,-505.89816113,0.00019178,2]
[395017909,1764337851093,-1023.05,0.00019178,2]